Cogmind - Beta 16.1 @@@ ROGUE MODE // 2026.04.28 @ 07:51:54 // Winter2019/RPGLIKE Player: FL-IST Result: Destroyed by AD-SZV(R) with Subdweller Machine Gun Performance ------------- Evolutions (0) 0 Regions Visited (3) 600 Robots Destroyed (42) 210 Value Destroyed (850) 850 Prototype IDs (14) 280 Alien Tech Used (0) 0 Bonus (-201) -201 TOTAL SCORE: 1739 Bonus ------- Follower Combat Kills 25 Friendly Fire -226 Cogmind --------- Core Integrity 0/600 Matter 300/300 Energy 160/160 System Corruption 0% Temperature Cool (0) Movement Walking (120) Location -10/Subcaves Parts ------- > --- POWER (1) -------- Light Nuclear Core > --- PROPULSION (2) --- Flexi-carbon Leg Flexi-carbon Leg > --- UTILITY (3) ------ Improved Heat Sink Improved Heat Sink Improved Heat Sink > --- WEAPON (3) ------- Particle Gun Particle Gun Particle Gun > --- INVENTORY (2) ---- Tower Shield Peak State ------------ > --- POWER ------------ Light Nuclear Core > --- PROPULSION ------- Flexi-carbon Leg Flexi-carbon Leg > --- UTILITY ---------- Improved Heat Sink Improved Heat Sink Improved Heat Sink > --- WEAPON ----------- Particle Gun Particle Gun Subdweller Laser > --- INVENTORY -------- Tower Shield [Rating: 30] Favorites ----------- Power Ion Engine Engine Ion Engine Power Core Light Nuclear Core Propulsion Flexi-carbon Leg Treads Light Treads Leg Flexi-carbon Leg Utility Improved Heat Sink Device Improved Heat Sink Protection Light Armor Plating Weapon Particle Gun Energy Gun Particle Gun Build | -11 -10 -10 -10 ------- Run | Yrd Mat Min Sub Slots Evolved 5 | 4 1 . . Power . | . . . . Propulsion 1 | 1 . . . Utility 2 | 1 1 . . Weapon 2 | 2 . . . Parts Attached 23 | 6 10 6 1 Power 4 | 1 2 1 . Engine 3 | 1 2 . . Core 1 | . . 1 . Reactor . | . . . . Propulsion 7 | 2 3 2 . Treads 2 | 2 . . . Leg 5 | . 3 2 . Wheel . | . . . . Hover . | . . . . Flight . | . . . . Utility 6 | 1 2 3 . Device 5 | 1 1 3 . Storage . | . . . . Processor . | . . . . Hackware . | . . . . Protection 1 | . 1 . . Artifact . | . . . . Weapon 6 | 2 3 . 1 Energy Gun 6 | 2 3 . 1 Energy Cannon . | . . . . Ballistic Gun . | . . . . Ballistic Cannon . | . . . . Launcher . | . . . . Special Weapon . | . . . . Impact Weapon . | . . . . Slashing Weapon . | . . . . Piercing Weapon . | . . . . Special Melee Weapon . | . . . . Unidentified Prototypes 1 | . . 1 . Parts Lost 2 | . . 2 . Power . | . . . . Propulsion . | . . . . Utility 2 | . . 2 . Weapon . | . . . . Highest Loss Streak 1 | . . 1 . To Critical Strikes . | . . . . Average Backups . | . . . . Power . | . . . . Propulsion . | . . . . Utility . | . . . . Weapon . | . . . . Tool/Special . | . . . . Unused Backups 1 | . . . 1 Power . | . . . . Propulsion . | . . . . Utility 1 | . . . 1 Weapon . | . . . . Tool/Special . | . . . . Average Slot Usage (%) 97 | . 94 99 99 Engine 7 | . 11 9 . Core 3 | . . 1 11 Treads 1 | . 3 . . Leg 21 | . 20 22 22 Device 27 | . 20 31 33 Protection 1 | . 3 1 . Energy Gun 33 | . 34 33 32 Peak Build Rating 30 | 6 15 28 30 Average Rating 19 | 4 12 24 28 On Entrance 12 | . 6 15 28 Avg Prop Armor Cover (%) 8 | . 8 . . Naked Turns . | . . . . Heaviest Build 21 | 9 21 21 18 Greatest Support 40 | 40 40 40 40 Greatest Overweight (x) 1 | . 1 . . Average Overweight (x) . | . . . . Largest Inventory Capacity 2 | . 1 1 2 Average Capacity . | . . 1 1 Most Carried 2 | . 1 1 2 Average Carried . | . . . . Final Capacity 2 | . 1 1 2 Final Carried 2 | . . 1 2 Class Distribution -------------------- 51% | Scavenger-Gunner 41% | Gunner 7% | Mutant Dominant Class ---------------- Gunner | -10/Materials Scavenger-Gunner | -10/Mines Scavenger-Gunner | -10/Subcaves Resources | -11 -10 -10 -10 ----------- Run | Yrd Mat Min Sub Matter Collected 554 | 260 139 115 40 Remotely . | . . . . Salvage Created 1431 | 192 751 186 302 Parts 83 | 14 38 11 20 Haulers Intercepted 1 | . 1 . . Recyclers Shooed 1 | 1 . . . Parts Field Recycled . | . . . . Retrieved Matter . | . . . . Parts Self-Destructed 7 | . . . 7 Prevented . | . . . . Parts Restored . | . . . . Kills | -11 -10 -10 -10 ------- Run | Yrd Mat Min Sub Combat Hostiles Destroyed 40 | . 16 19 5 Guns 39 | . 15 19 5 Classes Destroyed 13 | 2 7 2 2 Worker 3 | . 3 . . Builder 1 | . 1 . . Tunneler 5 | 5 . . . Hauler 1 | . 1 . . Recycler 2 | 1 1 . . Operator 1 | . 1 . . Watcher 3 | . 3 . . Swarmer 8 | . 5 3 . Grunt 12 | . 11 1 . Sentry 1 | . . . 1 Subdweller 4 | . . . 4 Assembled 15 | . . 15 . Guerrilla 1 | . . 1 . Best Kill Streak 12 | 3 4 12 2 Combat Bots Only 12 | . 3 12 2 Max Kills in Single Turn 1 | 1 1 1 1 Gunslinging . | . . . . Exploded . | . . . . Melee . | . . . . Uniques/NPCs Destroyed . | . . . . Combat | -11 -10 -10 -10 -------- Run | Yrd Mat Min Sub Hostile Shots Fired 130 | . 53 55 22 Missed 33 | . 9 19 5 Hits 97 | . 44 36 17 Melee 12 | . . 12 . Projectile 85 | . 44 24 17 Critical Strikes 1 | . . 1 . Damage Taken 1665 | . 545 699 421 Core 1321 | . 431 525 365 Absorbed by Shields . | . . . . Redirected to Core 924 | . 299 425 200 Core Remaining (%) 100 | 100 . . . Volleys Fired 136 | 12 60 42 22 Largest 3 | 2 3 3 3 Hottest 195 | 90 195 195 195 Shots Fired 353 | 24 145 120 64 Gun 353 | 24 145 120 64 Cannon . | . . . . Launcher . | . . . . Special . | . . . . Kinetic . | . . . . Thermal 353 | 24 145 120 64 Explosive . | . . . . Electromagnetic . | . . . . Robot Hit Streak 13 | 5 13 13 7 Robot Miss Streak 4 | 3 3 4 1 Penetration Max . | . . . . Secondary Targets 6 | . 1 3 2 Max Gunslinging Chain 1 | . 1 1 1 Shots Hit Robots 203 | 14 87 69 33 Core Hits 88 | 7 34 39 8 Critical Kills . | . . . . Critical Parts Destroyed . | . . . . Critical Strikes 10 | . 4 5 1 Burn 10 | . 4 5 1 Melee Attacks . | . . . . Impact . | . . . . Slashing . | . . . . Piercing . | . . . . Sneak Attacks . | . . . . Combat Hostiles . | . . . . Follow-up Attacks . | . . . . Damage Inflicted 2984 | 170 1291 1044 479 Guns 2984 | 170 1291 1044 479 Cannons . | . . . . Explosions . | . . . . Melee . | . . . . Ramming . | . . . . Kinetic . | . . . . Thermal 2984 | 170 1291 1044 479 Explosive . | . . . . Electromagnetic . | . . . . Impact . | . . . . Slashing . | . . . . Piercing . | . . . . Highest Corruption . | . . . . Average Corruption . | . . . . Corruption Purged . | . . . . Corruption Blocked . | . . . . Overload Shots . | . . . . Overflow Damage . | . . . . Projectiles . | . . . . Explosions . | . . . . Melee . | . . . . Knockbacks . | . . . . Impact . | . . . . Kinetic . | . . . . Secondary . | . . . . Self-Inflicted Damage . | . . . . Shots . | . . . . Rammed . | . . . . Targets Rammed . | . . . . Kicked . | . . . . Crushed . | . . . . Highest Temperature 567 | 180 567 442 . Average Temperature 144 | 72 147 159 . Received Heat Transfer 287 | . 174 20 93 Effects 15 | . 13 2 . Shutdowns 5 | . 4 1 . Energy Bleed 2 | . 1 1 . Interference 4 | . 4 . . Matter Decay 1 | . 1 . . Short Circuit 2 | . 2 . . Damage (core) 1 | . 1 . . Siege Activations . | . . . . Martial Activations . | . . . . Shielding Activations . | . . . . Robots Disrupted . | . . . . Combat Hostiles . | . . . . Robots Corrupted . | . . . . Combat Hostiles . | . . . . Parts Fried . | . . . . Impact Corruptions . | . . . . Robots Melted 2 | . 1 1 . Combat Hostiles 1 | . 1 . . Parts Melted 15 | 2 9 3 1 Heat Transferred 7984 | 458 3419 2923 1184 Parts Sabotaged . | . . . . Parts Stolen . | . . . . Parts Stripped . | . . . . Power Chain Reactions . | . . . . Alert | -11 -10 -10 -10 ------- Run | Yrd Mat Min Sub Maximum Alert Level . | . . . . Low Security (%) 100 | 100 100 100 . Level 1 . | . . . . Level 2 . | . . . . Level 3 . | . . . . Level 4 . | . . . . Level 5 . | . . . . High Security . | . . . . Max Security . | . . . . Peak Influence 167 | 15 167 110 . Initial 40 | . 6 40 . Average 67 | 4 108 14 . Influence Increases 795 | 30 617 128 20 Destroy 0b10 Robot/C 440 | . 320 100 20 Destroy 0b10 Robot/NC 80 | 30 50 . . Destroy Leader 88 | . 68 20 . Allied During Kill 8 | . . 8 . Successful Hack 41 | . 41 . . Select Force Hacks 60 | . 60 . . Disable Machine 15 | . 15 . . Destroy Structure 3 | . 3 . . Lose Combat Pursuer 60 | . 60 . . Influence Decreases 795 | 20 522 233 20 Entered New Map 69 | . 4 65 . Time Decay 696 | 20 518 138 20 Lost Part 10 | . . 10 . Lost Ally 20 | . . 20 . Squads Dispatched 4 | . 4 . . Investigation 3 | . 3 . . Extermination . | . . . . Reinforcement 1 | . 1 . . Assault . | . . . . Garrison . | . . . . Intercept . | . . . . Searches Triggered . | . . . . Construction Impeded . | . . . . Haulers Reinforced . | . . . . Active Scanning Responses . | . . . . Cargo Convoy Interrupts . | . . . . Stealth | -11 -10 -10 -10 --------- Run | Yrd Mat Min Sub Distress Signals . | . . . . Communications Jammed . | . . . . Distress Signals . | . . . . Times Spotted 57 | . 23 27 7 Peak Tracking Total 9 | . 3 9 2 Tactical Retreats 6 | . 3 3 . Traps | -11 -10 -10 -10 ------- Run | Yrd Mat Min Sub Traps Triggered 2 | . 1 . 1 Indirectly . | . . . . Trap Hack Attempts . | . . . . Triggered . | . . . . Disarmed . | . . . . Reprogrammed . | . . . . Reused . | . . . . Traps Extracted . | . . . . Installed . | . . . . Triggered . | . . . . Machines | -11 -10 -10 -10 ---------- Run | Yrd Mat Min Sub Machines Disabled 2 | . 1 . 1 Max in Single Turn 1 | . 1 . 1 Machines Repaired . | . . . . Machines Dismantled . | . . . . Machines Sabotaged . | . . . . Overloaded Fab Kills . | . . . . Hacking | -11 -10 -10 -10 --------- Run | Yrd Mat Min Sub Machines Accessed 9 | . 8 . 1 Terminals 6 | . 6 . . Fabricators . | . . . . Repair Stations . | . . . . Recycling Units 2 | . 2 . . Scanalyzers . | . . . . Garrison Access . | . . . . Total Hacks 23 | . 22 . 1 Successful 11 | . 10 . 1 Failed 12 | . 12 . . Catastrophic 1 | . 1 . . Database Lockouts . | . . . . Manual 16 | . 16 . . Terminals 14 | . 14 . . Fabricators . | . . . . Repair Stations . | . . . . Recycling Units 8 | . 8 . . Scanalyzers . | . . . . Garrison Access . | . . . . Terminal Hacks 1 | . . . 1 Proto ID Catalog 1 | . . . 1 Fabricator Hacks . | . . . . Repair Station Hacks . | . . . . Recycling Unit Hacks 1 | . 1 . . Retrieve Components 1 | . 1 . . Scanalyzer . | . . . . Garrison Access Hacks . | . . . . Unauthorized Hacks 9 | . 9 . . Terminals 7 | . 7 . . Botnet 2 | . 2 . . Skim 5 | . 5 . . Fabricators . | . . . . Repair Stations . | . . . . Recycling Units 2 | . 2 . . Tunnel 2 | . 2 . . Scanalyzers . | . . . . Garrison Access . | . . . . Data Cores Recovered . | . . . . Used . | . . . . Hacking Detections 7 | . 7 . . Full Trace Events 1 | . 1 . . Feedback Events . | . . . . Feedback Blocked . | . . . . Robot Schematics Acquired . | . . . . Robots Built . | . . . . Authchips . | . . . . Time . | . . . . Total Robot Build Rating . | . . . . Part Schematics Acquired . | . . . . Parts Built . | . . . . Authchips . | . . . . Time . | . . . . Total Part Build Rating . | . . . . Part Studies Acquired . | . . . . Parts Repaired . | . . . . Time . | . . . . Parts Recycled . | . . . . Recycled Matter . | . . . . Retrieved Matter . | . . . . Retrieved Components 9 | . 9 . . Parts Scanalyzed . | . . . . Part Schematics Acquired . | . . . . Parts Damaged . | . . . . Bothacking | -11 -10 -10 -10 ------------ Run | Yrd Mat Min Sub Used RIF Installer . | . . . . Robots Hacked . | . . . . Non-combat . | . . . . Combat . | . . . . Robot Hacks Applied . | . . . . Relay Couplers Released . | . . . . Fabnet Peak Effective % . | . . . . Robots Rewired . | . . . . Allies Hacked . | . . . . Hacks Repelled . | . . . . Allies | -11 -10 -10 -10 -------- Run | Yrd Mat Min Sub Total Allies 4 | . . 4 . Largest Group 3 | . . 3 3 Highest-Rated Group 40 | . . 40 40 Highest-Rated Ally 31 | . . 31 16 Total Orders . | . . . . Ally Attacks 19 | . . 16 3 Total Damage 166 | . . 155 11 Kills 4 | . . 4 . Allies Corrupted . | . . . . Allies Melted 1 | . . 1 . Intel | -11 -10 -10 -10 ------- Run | Yrd Mat Min Sub Active Infowar (turns) 580 | 17 555 8 . Seismic 580 | 17 555 8 . Robot Analysis Total . | . . . . Derelict Logs Recovered 2 | . . 2 . Drone Launches . | . . . . Drone Recoveries . | . . . . Exploration | -11 -10 -10 -10 ------------- Run | Yrd Mat Min Sub Turns Passed 3461 | 96 1421 1006 938 Spaces Moved 2054 | 35 698 664 657 Core 4 | 4 . . . Treads 97 | 31 66 . . Legs 1953 | . 632 664 657 Wheels . | . . . . Hover . | . . . . Flight . | . . . . Fastest Speed 50 | 50 120 120 120 Average Speed 124 | 147 132 120 120 Slowest Speed 190 | 160 190 120 120 Overloaded Moves . | . . . . Propulsion Burnouts . | . . . . Robots Hopped . | . . . . Potential Cave-ins . | . . . . Cave-ins Triggered . | . . . . Exploration Rate (%) 54 | 3 93 99 24 Regions Visited 3 Branch Regions 2 Pre-discovered Areas 4 | . 3 1 . Known Exits Taken 2 | . 1 1 . Unknown Exits Taken 1 | 1 . . . Scrap Searched 2 | . . 2 . Spaces Dug . | . . . . Terrain Destroyed . | . . . . Melee . | . . . . Projectile . | . . . . AOE . | . . . . Terrain Rammed . | . . . . Walls Destroyed . | . . . . Machines Disabled . | . . . . Actions | -11 -10 -10 -10 --------- Run | Yrd Mat Min Sub Total 2662 | 52 1073 779 758 Wait 389 | . 279 42 68 Move 2051 | 34 697 663 657 Hop . | . . . . Pick Up 4 | . 1 1 2 Fast Attach 15 | 6 6 2 1 Attach 3 | . . 2 1 Detach . | . . . . Swap 14 | . 4 8 2 Drop 15 | . 8 4 3 Fire 136 | 12 60 42 22 Melee . | . . . . Ram . | . . . . Kick . | . . . . Crush . | . . . . Escape Stasis . | . . . . Rewire . | . . . . Trap . | . . . . Miscellaneous 35 | . 18 15 2 Route ------- -11/Scrapyard -10/Materials (discovered 5 exits: *Mat x3 / *Min / Sub) -10/Mines (discovered 4 exits: *Mat x2 / [*Exi] / *Sub) -10/Subcaves (discovered 3 exits: Mat x2 / Rec) History --------- Turn | Location | Event 5 | -11/Scrapyard | Upgraded with Propulsion slot (x1) 5 | -11/Scrapyard | Upgraded with Utility slot (x1) 5 | -11/Scrapyard | Upgraded with Weapon slot (x2) 38 | -11/Scrapyard | Discovered new exit (range 15) 97 | -11/Scrapyard | Entered Materials 388 | -10/Materials | Discovered new exit (range 16) 531 | -10/Materials | Reached level 2 565 | -10/Materials | Build established: Gunner 886 | -10/Materials | Learned location of 2 exits from Subcaves 938 | -10/Materials | Identified exit to Materials 1009 | -10/Materials | Learned Storage non-interactive machine intel 1028 | -10/Materials | Learned 2 Mines zone layouts 1037 | -10/Materials | Identified exit to Mines 1037 | -10/Materials | Identified exit to Subcaves 1056 | -10/Materials | Learned Storage garrison access intel 1082 | -10/Materials | Upgraded with Utility slot (x1) 1086 | -10/Materials | Loaded intel: 8 terminal locations 1126 | -10/Materials | Loaded intel: 14 trap records 1178 | -10/Materials | Learned Materials trap positions 1518 | -10/Materials | Entered Mines 1521 | -10/Mines | Met a Derelict bent on vengeance 1523 | -10/Mines | Reached level 3 1531 | -10/Mines | Escorted by a lone wolf Derelict 1545 | -10/Mines | Deemed a non-threat by the Exiles lab entrance 1546 | -10/Mines | Discovered new exit (range 5) 1551 | -10/Mines | Learned location of Storage (-7) 1556 | -10/Mines | Assembled infested the area 1561 | -10/Mines | Assisted by a Guerilla fighting off Assembled 1676 | -10/Mines | Core integrity fell below 50% 1714 | -10/Mines | Destroyed 12 combat bots 1924 | -10/Mines | Discovered exit to Materials (range 4) 1945 | -10/Mines | Found a damaged Exp. Sensor Array with a note attached 1948 | -10/Mines | Found Prototype Device 1948 | -10/Mines | Identified Exp. Sensor Array 1989 | -10/Mines | Build established: Scavenger-Gunner 2070 | -10/Mines | Assisted by bots powering up and referring to "LRC-V3" 2072 | -10/Mines | Learned location of 1 exit from Materials 2356 | -10/Mines | Learned Materials security intel 2510 | -10/Mines | Discovered exit to Subcaves (range 6) 2524 | -10/Mines | Entered Subcaves 2524 | -10/Subcaves | Accompanied by 3 allies 2525 | -10/Subcaves | Approached by a straggling Scientist 2525 | -10/Subcaves | Identified exit to Recycling 2526 | -10/Subcaves | A swath of the cavern ceiling suddenly collapsed 2526 | -10/Subcaves | Identified exit to Materials 2526 | -10/Subcaves | Reached level 4 2769 | -10/Subcaves | Visited 4L-MR0's lab 2884 | -10/Subcaves | Core integrity fell below 20% 2905 | -10/Subcaves | Lost 3 allies 3287 | -10/Subcaves | Found Tower Shield 3459 | -10/Subcaves | A Subdweller sparked back to life 3459 | -10/Subcaves | A Subdweller sparked back to life 3462 | -10/Subcaves | Destroyed by AD-SZV(R) with Subdweller Machine Gun Last Messages --------------- 03035_ Y-45 Defender destroyed. 03039_ Lgt. Treads fries itself beyond repair. 03041_ Hvy. Assault Rifle fries itself beyond repair. 03043_ Beam Rifle fries itself beyond repair. 03046_ Lgt. Treads fries itself beyond repair. 03050_ Heat Sink fries itself beyond repair. 03109_ Triggered Shrapnel Trap. 03109_ An expanding cloud of shrapnel blasts out in all directions. 03271_ Acquired Sub. Laser. 03281_ Testing Chamber breached. 03287_ Upgraded: Inventory Capacity (+1) 03287_ Acquired Tower Shield. 03288_ Dropped Sub. Laser. 03290_ 4L-MR0: "Uhh... I didn't see nothing, but you'd better hope DW-4LL doesn't find out you took that." 03299_ Acquired Particle Gun. Y5-VBB(c): "I think it's somewhere southeast of here" 03347_ Subatomizers dissect the Sub. Beam Cannon. 03350_ Acquired 20 matter. 03459_ AD-SZV(R) creaks and sparks as it begins to move. 03459_ LR-NMH(R) creaks and sparks as it begins to move. Map ----- +----------------------------------------------------+ | | | ?????????????????????????????????????????????????? | | ?????????????????????????????????????????????????? | | ?????????????????????????????????????????????????? | | ?????????????????????????????????????????????????? | | ?????????????????????????????????????????????????? | | ?????????????????????????????????????????????????? | | ?????????????????????????????????????????????????? | | ?????????????????????????????????????????????????? | | ?????????????????????????????????????????????????? | | ?????????????????????????????????????????????????? | | ?????????????????????????????????????????????????? | | ?????????????????????????????????????????????????? | | ?????????????????????????????????????????????????? | | ?????????????????????????????????????????????????? | | ?????????????????????????????????????????????????? | | ?????????????????????????????????????????????????? | | ?????????????????????????????????????????????????? | | ??????????????###????????????????????????????????? | | ???????######## ##???????????????????????????????? | | ????#### # # # ##?????????????#<###????????????? | | ##### #?####??????# < #????????????? | | ## ### ###### R& #????????????? | | # ### #????????????? | | #### #### ### #????????????? | | ##??## ##?## ## @ # " ????????? | | #????###?## ###